fUSD/lending_fUSD_20251221
["ID","MTS","AMOUNT","RATE_DAILY","PERIOD"]
[399419184,1766337047165,-3577.26528562,0.00017656,2]
[399419185,1766337047175,-2146.85,0.0001793,2]
[399419186,1766337047185,-500.0,0.0001796,2]
[399419187,1766337047195,-1000.0,0.00018082,2]
[399419188,1766337047204,-1503.04548544,0.00018164,2]
[399419189,1766337047213,-1006.79331904,0.00018164,2]
[399419190,1766337047222,-2500.0,0.00018164,2]
[399419191,1766337047231,-2360.83448827,0.00018164,2]
[399419192,1766337047239,-2500.0,0.00018164,2]
[399419193,1766337047248,-939.42444411,0.00018164,2]
[399419194,1766337047257,-504.58244628,0.00018164,2]
[399419195,1766337047267,-2500.0,0.00018164,2]
[399419196,1766337047276,-2500.0,0.00018164,2]
[399419197,1766337047287,-2500.0,0.00018164,2]
[399419198,1766337047296,-1234.47830759,0.00018164,2]
[399419199,1766337047305,-2146.85,0.00018204,2]
[399419200,1766337047314,-5000.0,0.00018204,2]
[399419201,1766337047323,-3386.0,0.00018365,2]
[399419202,1766337047332,-2146.89190316,0.00018478,2]
[399419203,1766337047342,-9035.0,0.0001857,2]
[399419204,1766337047352,-1595.77264532,0.00018603,2]
[399419205,1766337047362,-3000.0,0.00018712,2]
[399419206,1766337047371,-1565.61474305,0.00018712,2]
[399419207,1766337047380,-3000.0,0.00018712,2]
[399419208,1766337047390,-443.06963152,0.00018712,2]
[399419209,1766337047399,-2648.62512129,0.00018712,2]
[399419210,1766337047409,-2261.33843454,0.00018752,2]
[399419211,1766337047418,-1000.0,0.0001876,2]
[399419212,1766337047427,-1455.70778626,0.00019,2]
[399419213,1766337047437,-300.0,0.00019,2]
[399419214,1766337047447,-624.51106854,0.00019,2]
[399419215,1766337047456,-3000.0,0.00019178,2]
[399419216,1766337047466,-3014.97600553,0.00019178,7]
[399419217,1766337047475,-790.0,0.00019178,2]
[399419218,1766337047485,-720.0,0.00019178,2]
[399419219,1766337047494,-719.95868703,0.0001926,2]
[399419220,1766337047503,-3500.0,0.0001926,2]
[399419221,1766337047513,-1000.0,0.00019438,2]
[399419222,1766337047522,-500.0,0.00019479,2]
[399419223,1766337047532,-1009.3386006,0.00019708,2]
[399419224,1766337047541,-39621.4164478,0.00019723,2]
[399419225,1766337047551,-303.48287397,0.00019808,2]
[399419226,1766337047560,-1163.53608474,0.00019956,2]
[399419227,1766337047569,-37166.06809118,0.00019998,2]
[399419228,1766337047580,-188.59099171,0.0002,20]
[399419229,1766337047590,-1000.0,0.00020116,2]
[399419230,1766337047599,-1000.0,0.00020187,2]
[399419231,1766337047608,-500.0,0.00020355,2]
[399419232,1766337047618,-500.0,0.00020355,2]
[399419233,1766337047628,-10792.0,0.00020427,2]
[399419234,1766337047637,-3183.5,0.00020725,2]
[399419235,1766337047647,-500.0,0.00020764,2]
[399419236,1766337047655,-1000.0,0.00020795,2]
[399419237,1766337047665,-350.0,0.00021,2]
[399419238,1766337047674,-495.73,0.00021621,2]
[399419239,1766337047686,-150.0,0.000219,2]
[399419240,1766337047696,-250.0,0.00022448,2]
[399419241,1766337047705,-3183.5,0.00022577,2]
[399419242,1766337047714,-1595.77264532,0.00022662,2]
[399419243,1766337047723,-151.1701939,0.00022699,2]
[399419244,1766337047732,-39621.4164478,0.00022802,2]
[399419245,1766337047742,-350.0,0.00022996,2]
[399419246,1766337047751,-400.0,0.00023,2]
[399419247,1766337047761,-681.56,0.00023113,2]
[399419248,1766337047773,-37166.06809118,0.00023148,2]
[399419249,1766337047783,-257.1,0.00023231,2]
[399419250,1766337047793,-194.105,0.0002345,2]
[399419251,1766337047803,-384.63,0.00023534,2]
[399419252,1766337047814,-500.0,0.00023568,2]
[399419253,1766337047823,-3183.5,0.00024429,2]
[399419254,1766337047833,-500.0,0.00024603,2]
[399419255,1766337047843,-1163.53608474,0.00024692,2]
[399419256,1766337047854,-300.0,0.00024731,2]
[399419257,1766337047863,-151.0,0.00024731,2]
[399419258,1766337047873,-156.587,0.00024731,2]
[399419259,1766337047883,-162.380719,0.00024731,2]
[399419260,1766337047893,-153.50930745,0.00024731,2]
[399419261,1766337047902,-151.0,0.00024731,2]
[399419262,1766337047911,-200.0,0.00024731,2]
[399419263,1766337047920,-207.4,0.00024731,2]
[399419264,1766337047929,-215.0738,0.00024731,2]
[399419265,1766337047939,-223.0315306,0.00024731,2]
[399419266,1766337047948,-231.28369723,0.00024731,2]
[399419267,1766337047957,-239.84119403,0.00024731,2]
[399419268,1766337047967,-248.71531821,0.00024731,2]
[399419269,1766337047976,-257.91778498,0.00024731,2]
[399419270,1766337047986,-500.0,0.00024767,2]
[399419271,1766337047995,-151.0,0.00024797,7]
[399419272,1766337048004,-500.0,0.00024799,2]
[399419273,1766337048014,-500.0,0.00024799,2]
[399419274,1766337048024,-500.0,0.00024799,2]
[399419275,1766337048033,-500.0,0.00024799,2]
[399419276,1766337048043,-681.56,0.00024799,2]
[399419277,1766337048053,-681.56,0.00024799,2]
[399419278,1766337048063,-1000.52083391,0.00024799,2]
[399419279,1766337048073,-1740.7,0.000248,7]
[399419280,1766337048083,-601758.972073,0.000248,2]
[399419281,1766337048092,-681.56,0.00024899,2]
[399419282,1766337048101,-681.56,0.00024899,2]
[399419283,1766337048111,-2000.0,0.000249,2]
[399419284,1766337048120,-403443.147246,0.000249,2]
[399419285,1766337048130,-3524.697,0.00024915,2]
[399419286,1766337048138,-612.0,0.00024915,2]
[399419287,1766337048147,-1326.0,0.00024915,2]
[399419288,1766337048156,-1609.0,0.00024915,2]
[399419289,1766337048165,-1262.0,0.00024915,2]
[399419290,1766337048175,-911.0,0.00024915,2]
[399419291,1766337048186,-1218.658,0.00024915,2]
[399419292,1766337048195,-564.0,0.00024915,2]
[399419293,1766337048205,-2429.0,0.00024915,2]
[399419294,1766337048214,-4803.0,0.00024915,2]
[399419295,1766337048223,-193.419,0.00025566,2]
[399419296,1766337048232,-155.801,0.00025566,2]
[399419297,1766337048242,-276.632,0.00025566,2]
[399419298,1766337048251,-211.428,0.00025566,2]
[399419299,1766337048260,-250.0,0.00025566,2]
[399419300,1766337048269,-164.0,0.00025566,2]
[399419301,1766337048278,-224.555,0.00025566,2]
[399419302,1766337048287,-150.0,0.00025566,2]
[399419303,1766337048296,-39621.4164478,0.00025882,2]
[399419304,1766337048305,-311.1,0.000261,2]
[399419305,1766337048314,-151.0,0.000261,2]
[399419306,1766337048324,-267.46074303,0.000261,2]
[399419307,1766337048333,-3183.5,0.0002628,2]
[399419308,1766337048342,-37166.06809118,0.00026299,2]
[399419309,1766337048352,-500.0,0.00026372,2]
[399419310,1766337048361,-170.93592581,0.00026532,2]
[399419311,1766337048370,-1000.0,0.00026676,2]
[399419312,1766337048380,-1595.77264532,0.00026722,2]
[399419313,1766337048389,-150.0,0.00027018,2]
[399419314,1766337048399,-150.0,0.00027369,2]
[399419315,1766337048409,-333.6,0.00027397,6]
[399419316,1766337048418,-1438.57,0.00027397,2]
[399419317,1766337048428,-322.6107,0.00027469,2]
[399419318,1766337048438,-277.35679052,0.00027469,2]
[399419319,1766337048447,-1000.52083389,0.00027619,2]
[399419320,1766337048458,-3456.0,0.00027915,2]
[399419321,1766337048467,-612.0,0.00027915,2]
[399419322,1766337048476,-1326.0,0.00027915,2]
[399419323,1766337048485,-1262.0,0.00027915,2]
[399419324,1766337048499,-911.0,0.00027915,2]
[399419325,1766337048507,-1197.0,0.00027915,2]
[399419326,1766337048516,-2429.0,0.00027915,2]
[399419327,1766337048526,-4775.0,0.00027915,2]
[399419328,1766337048536,-495.73,0.0002801,2]
[399419329,1766337048546,-3183.5,0.00028132,2]
[399419330,1766337048555,-1740.7,0.000282,7]
[399419331,1766337048565,-1000.0,0.00028486,7]
[399419332,1766337048575,-150.0,0.00028566,2]
[399419333,1766337048584,-150.0,0.00028566,2]
[399419334,1766337048594,-150.0,0.00028566,2]
[399419335,1766337048606,-2000.0,0.000286,2]
[399419336,1766337048616,-334.5472959,0.00028838,2]
[399419337,1766337048626,-287.61899177,0.00028838,2]
[399419338,1766337048636,-39621.4164478,0.00028961,2]
[399419339,1766337048645,-681.56,0.00029103,2]
[399419340,1766337048656,-8125.0,0.00029104,5]
[399419341,1766337048666,-1009.33860059,0.00029304,2]
[399419342,1766337048675,-1163.53608474,0.00029428,2]
[399419343,1766337048686,-37166.06809118,0.00029449,2]
[399419344,1766337048695,-3183.5,0.00029984,2]
[399419345,1766337048705,-1000.0,0.00029999,21]
[399419346,1766337048714,-346.92554585,0.00030207,2]
[399419347,1766337048723,-298.26089446,0.00030207,2]
[399419348,1766337048733,-257.1,0.00030346,2]
[399419349,1766337048742,-1000.52083389,0.00030439,2]
[399419350,1766337048752,-384.63,0.00030631,2]
[399419351,1766337048763,-1595.77264532,0.00030781,2]
[399419352,1766337048775,-3456.0,0.00030915,2]
[399419353,1766337048784,-612.0,0.00030915,2]
[399419354,1766337048794,-1326.0,0.00030915,2]
[399419355,1766337048806,-1262.0,0.00030915,2]
[399419356,1766337048815,-911.0,0.00030915,2]
[399419357,1766337048825,-1197.0,0.00030915,2]
[399419358,1766337048834,-2429.0,0.00030915,2]
[399419359,1766337048846,-500.0,0.00031452,2]
[399419360,1766337048855,-359.76179104,0.00031576,2]
[399419361,1766337048865,-309.29654756,0.00031576,2]
[399419362,1766337048874,-1740.7,0.000316,7]
[399419363,1766337048884,-3183.5,0.00031836,2]
[399419364,1766337048894,-39621.4164478,0.00032041,2]
[399419365,1766337048904,-500.0,0.00032274,2]
[399419366,1766337048913,-2000.0,0.000323,2]
[399419367,1766337048923,-37166.06809118,0.00032599,2]
[399419368,1766337048934,-373.07297731,0.00032945,2]
[399419369,1766337048943,-320.74051982,0.00032945,2]
[399419370,1766337048952,-1000.0,0.00033165,2]
[399419371,1766337048961,-1000.52083389,0.0003326,2]
[399419372,1766337048970,-3183.5,0.00033688,3]
[399419373,1766337048980,-2626.21,0.000337,2]
[399419374,1766337048989,-319.62,0.000338,14]
[399419375,1766337048999,-467.31,0.000338,14]
[399419376,1766337049009,-500.0,0.00033846,2]
[399419377,1766337049019,-500.0,0.00033846,2]
[399419378,1766337049029,-500.0,0.00033846,2]
[399419379,1766337049038,-500.0,0.00033846,2]
[399419380,1766337049048,-500.0,0.00033846,2]
[399419381,1766337049057,-500.0,0.00033846,2]
[399419382,1766337049068,-500.0,0.00033846,2]
[399419383,1766337049077,-500.0,0.00033846,2]
[399419384,1766337049087,-500.0,0.00033846,2]
[399419385,1766337049097,-500.0,0.00033846,2]
[399419386,1766337049107,-500.0,0.00033846,2]
[399419387,1766337049116,-500.0,0.00033846,2]
[399419388,1766337049125,-500.0,0.00033846,2]
[399419389,1766337049134,-500.0,0.00033846,2]
[399419390,1766337049144,-500.0,0.00033846,2]
[399419391,1766337049154,-500.0,0.00033846,2]
[399419392,1766337049163,-500.0,0.00033846,2]
[399419393,1766337049172,-500.0,0.00033846,2]
[399419394,1766337049182,-500.0,0.00033846,2]
[399419395,1766337049192,-500.0,0.00033846,2]
[399419396,1766337049201,-500.0,0.00033846,2]
[399419397,1766337049211,-500.0,0.00033846,2]
[399419398,1766337049221,-500.0,0.00033846,2]
[399419399,1766337049231,-500.0,0.00033846,2]
[399419400,1766337049241,-500.0,0.00033846,2]
[399419401,1766337049251,-500.0,0.00033846,2]
[399419402,1766337049261,-500.0,0.00033846,2]
[399419403,1766337049270,-500.0,0.00033846,2]
[399419404,1766337049279,-500.0,0.00033846,2]
[399419405,1766337049289,-500.0,0.00033846,2]
[399419406,1766337049299,-500.0,0.00033846,2]
[399419407,1766337049308,-500.0,0.00033846,2]
[399419408,1766337049318,-500.0,0.00033846,2]
[399419409,1766337049327,-500.0,0.00033846,2]
[399419410,1766337049337,-500.0,0.00033846,2]
[399419411,1766337049346,-500.0,0.00033846,2]
[399419412,1766337049356,-500.0,0.00033846,2]
[399419413,1766337049365,-500.0,0.00033846,2]
[399419414,1766337049375,-500.0,0.00033846,2]
[399419415,1766337049385,-500.0,0.00033846,2]
[399419416,1766337049394,-500.0,0.00033846,2]
[399419417,1766337049404,-500.0,0.00033846,2]
[399419418,1766337049416,-500.0,0.00033846,2]
[399419419,1766337049425,-500.0,0.00033846,2]
[399419420,1766337049436,-500.0,0.00033846,2]
[399419421,1766337049445,-500.0,0.00033846,2]
[399419422,1766337049455,-1000.0,0.00033873,3]
[399419423,1766337049465,-612.0,0.00033915,2]
[399419424,1766337049474,-1326.0,0.00033915,2]
[399419425,1766337049484,-1262.0,0.00033915,2]
[399419426,1766337049494,-911.0,0.00033915,2]
[399419427,1766337049504,-1197.0,0.00033915,2]
[399419428,1766337049513,-2429.0,0.00033915,2]
[399419429,1766337049523,-1163.53608474,0.00034164,2]
[399419430,1766337049533,-386.87667747,0.00034314,2]
[399419431,1766337049542,-332.60791905,0.00034314,2]
[399419432,1766337049551,-1740.7,0.000344,14]
[399419433,1766337049561,-275.41,0.00034663,2]
[399419434,1766337049572,-334.24056633,0.00034735,2]
[399419435,1766337049581,-1000.0,0.000348,7]
[399419436,1766337049591,-1595.77264532,0.00034841,2]
[399419437,1766337049600,-275.41,0.00034927,2]
[399419438,1766337049610,-150.0,0.00035088,7]
[399419439,1766337049620,-150.0,0.00035088,7]
[399419440,1766337049630,-150.0,0.00035088,7]
[399419441,1766337049639,-150.0,0.00035088,7]
[399419442,1766337049649,-151.28381653,0.00035088,7]
[399419443,1766337049658,-150.0,0.00035088,7]
[399419444,1766337049668,-150.0,0.00035088,7]
[399419445,1766337049678,-150.0,0.00035088,7]
[399419446,1766337049688,-150.0,0.00035088,7]
[399419447,1766337049697,-150.0,0.00035088,7]
[399419448,1766337049707,-150.0,0.00035088,7]
[399419449,1766337049716,-150.0,0.00035088,7]
[399419450,1766337049724,-150.0,0.00035088,7]
[399419451,1766337049734,-150.89972091,0.00035088,7]
[399419452,1766337049743,-150.0,0.00035088,7]
[399419453,1766337049752,-150.0,0.00035088,7]
[399419454,1766337049762,-39621.4164478,0.0003512,2]
[399419455,1766337049773,-150.0,0.00035159,7]
[399419456,1766337049782,-150.0,0.0003516,7]
[399419457,1766337049792,-150.0,0.00035174,7]
[399419458,1766337049801,-275.40342915,0.0003519,2]
[399419459,1766337049811,-150.0,0.0003521,7]
[399419460,1766337049821,-150.0,0.00035227,7]
[399419461,1766337049831,-150.0,0.00035229,7]
[399419462,1766337049841,-150.0,0.00035232,7]
[399419463,1766337049851,-150.0,0.00035232,7]
[399419464,1766337049860,-150.0,0.00035261,7]
[399419465,1766337049870,-150.0,0.000353,7]
[399419466,1766337049879,-150.0,0.00035304,7]
[399419467,1766337049888,-150.0,0.00035331,7]
[399419468,1766337049899,-150.0,0.00035348,7]
[399419469,1766337049909,-150.0,0.00035366,7]
[399419470,1766337049919,-150.0,0.00035371,7]
[399419471,1766337049931,-150.0,0.00035376,7]
[399419472,1766337049940,-150.0,0.00035376,7]
[399419473,1766337049950,-150.0,0.00035434,7]
[399419474,1766337049960,-150.0,0.00035442,7]
[399419475,1766337049969,-150.0,0.00035449,7]
[399419476,1766337049979,-150.0,0.00035453,7]
[399419477,1766337049990,-150.0,0.00035478,7]
[399419478,1766337050000,-150.0,0.00035505,7]
[399419479,1766337050010,-150.0,0.00035513,7]
[399419480,1766337050020,-150.0,0.00035521,7]
[399419481,1766337050030,-150.0,0.00035521,7]
[399419482,1766337050039,-150.0,0.00035521,7]
[399419483,1766337050048,-150.0,0.00035521,7]
[399419484,1766337050058,-3183.5,0.0003554,4]
[399419485,1766337050068,-150.0,0.00035575,7]
[399419486,1766337050077,-150.0,0.00035575,7]
[399419487,1766337050087,-150.0,0.00035584,7]
[399419488,1766337050097,-150.0,0.00035593,7]
[399419489,1766337050106,-2626.21,0.000356,2]
[399419490,1766337050115,-150.0,0.00035607,7]
[399419491,1766337050125,-1000.0,0.00035615,13]
[399419492,1766337050135,-150.0,0.00035645,7]
[399419493,1766337050144,-150.0,0.00035655,7]
[399419494,1766337050154,-150.0,0.00035665,7]
[399419495,1766337050164,-150.0,0.00035665,7]
[399419496,1766337050173,-401.19111454,0.00035683,2]
[399419497,1766337050184,-344.91441206,0.00035683,2]
[399419498,1766337050194,-150.0,0.00035694,7]
[399419499,1766337050204,-150.0,0.00035697,7]
[399419500,1766337050215,-150.0,0.00035726,7]
[399419501,1766337050224,-150.0,0.00035737,7]
[399419502,1766337050234,-150.0,0.00035737,7]
[399419503,1766337050244,-681.56,0.00035742,2]
[399419504,1766337050254,-37166.06809118,0.0003575,2]
[399419505,1766337050264,-150.0,0.00035781,7]
[399419506,1766337050274,-150.0,0.00035784,7]
[399419507,1766337050284,-150.0,0.00035797,7]
[399419508,1766337050293,-150.0,0.0003581,7]
[399419509,1766337050302,-150.0,0.0003581,7]
[399419510,1766337050311,-150.0,0.00035819,7]
[399419511,1766337050321,-150.0,0.00035867,7]
[399419512,1766337050331,-150.0,0.00035867,7]
[399419513,1766337050340,-150.0,0.00035867,7]
[399419514,1766337050350,-150.0,0.00035882,7]
[399419515,1766337050361,-150.0,0.00035923,7]
[399419516,1766337050370,-150.0,0.00035938,7]
[399419517,1766337050380,-150.0,0.0003594,7]
[399419518,1766337050390,-150.0,0.00035954,7]
[399419519,1766337050402,-150.0,0.00035954,7]
[399419520,1766337050412,-150.0,0.00035954,7]
[399419521,1766337050423,-150.0,0.00035954,7]
[399419522,1766337050433,-2000.0,0.00036,2]
[399419523,1766337050444,-1146.0,0.00036,2]
[399419524,1766337050453,-150.0,0.00036009,7]
[399419525,1766337050463,-150.0,0.00036026,7]
[399419526,1766337050474,-150.0,0.00036041,7]
[399419527,1766337050484,-150.0,0.00036062,7]
[399419528,1766337050494,-150.0,0.00036062,7]
[399419529,1766337050504,-150.0,0.00036062,7]
[399419530,1766337050515,-1000.52083389,0.0003608,2]
[399419531,1766337050525,-150.0,0.0003608,7]
[399419532,1766337050535,-150.0,0.00036098,7]
[399419533,1766337050545,-150.0,0.00036098,7]
[399419534,1766337050555,-150.0,0.00036127,7]
[399419535,1766337050564,-150.0,0.00036151,7]
[399419536,1766337050575,-999.0,0.00036164,120]
[399419537,1766337050586,-150.0,0.00036171,7]
[399419538,1766337050600,-150.0,0.00036184,7]
[399419539,1766337050611,-467.31,0.000362,14]
[399419540,1766337050621,-1000.0,0.000362,7]
[399419541,1766337050631,-150.0,0.00036202,7]
[399419542,1766337050641,-150.0,0.00036214,7]
[399419543,1766337050651,-150.0,0.00036222,7]
[399419544,1766337050666,-150.0,0.00036243,7]
[399419545,1766337050680,-150.0,0.00036243,7]
[399419546,1766337050690,-150.0,0.00036257,7]
[399419547,1766337050700,-150.0,0.00036293,7]
[399419548,1766337050711,-1000.0,0.000363,30]
[399419549,1766337050721,-150.0,0.00036301,7]
[399419550,1766337050967,-150.0,0.00036306,7]
[399419551,1766337050978,-150.0,0.00036315,7]
[399419552,1766337050988,-150.0,0.00036341,7]
[399419553,1766337050998,-150.0,0.00036364,7]
[399419554,1766337051008,-150.0,0.00036387,7]
[399419555,1766337051017,-150.0,0.00036387,7]
[399419556,1766337051026,-150.0,0.00036387,7]
[399419557,1766337051035,-150.0,0.00036387,7]
[399419558,1766337051044,-150.0,0.00036387,7]
[399419559,1766337051053,-150.0,0.00036428,7]
[399419560,1766337051063,-150.0,0.00036434,7]
[399419561,1766337051072,-150.0,0.00036459,7]
[399419562,1766337051082,-150.0,0.00036474,7]
[399419563,1766337051091,-150.0,0.0003648,7]
[399419564,1766337051100,-150.0,0.00036505,7]
[399419565,1766337051109,-150.0,0.00036532,7]
[399419566,1766337051123,-150.0,0.00036532,7]
[399419567,1766337051132,-150.0,0.0003655,7]
[399419568,1766337051142,-150.0,0.0003655,7]
[399419569,1766337051153,-150.0,0.0003656,7]
[399419570,1766337051163,-397.16543724,0.00036564,2]
[399419571,1766337051173,-150.0,0.00036576,7]
[399419572,1766337051183,-150.0,0.00036604,7]
[399419573,1766337051193,-150.0,0.00036619,7]
[399419574,1766337051202,-168.0,0.0003663,2]
[399419575,1766337051211,-150.0,0.00036647,7]
[399419576,1766337051222,-150.0,0.00036647,7]
[399419577,1766337051234,-150.0,0.00036647,7]
[399419578,1766337051244,-150.0,0.00036671,7]
[399419579,1766337051253,-150.0,0.00036676,7]
[399419580,1766337051263,-150.0,0.00036676,7]
[399419581,1766337051272,-198.94914877,0.00036684,2]
[399419582,1766337051281,-168.0,0.00036701,2]
[399419583,1766337051291,-150.0,0.00036718,7]
[399419584,1766337051301,-150.0,0.00036734,7]
[399419585,1766337051310,-150.0,0.00036748,7]
[399419586,1766337051320,-150.0,0.00036759,7]
[399419587,1766337051329,-800.0,0.00036785,13]
[399419588,1766337051339,-800.0,0.00036785,13]
[399419589,1766337051349,-800.0,0.00036785,13]
[399419590,1766337051358,-800.0,0.00036785,13]
[399419591,1766337051368,-800.0,0.00036785,13]
[399419592,1766337051378,-800.0,0.00036785,13]
[399419593,1766337051388,-800.0,0.00036785,13]
[399419594,1766337051397,-800.0,0.00036785,13]
[399419595,1766337051407,-150.0,0.00036789,7]
[399419596,1766337051416,-150.0,0.00036793,7]
[399419597,1766337051427,-150.0,0.0003682,7]
[399419598,1766337051437,-150.0,0.0003682,7]
[399419599,1766337051448,-150.0,0.0003682,7]
[399419600,1766337051457,-150.0,0.0003682,7]
[399419601,1766337051467,-1000.0,0.00036827,30]
[399419602,1766337051477,-150.0,0.0003686,7]
[399419603,1766337051487,-198.94914877,0.00036888,2]
[399419604,1766337051497,-150.0,0.00036893,7]
[399419605,1766337051507,-150.0,0.00036898,7]
[399419606,1766337051516,-2626.21,0.000369,2]
[399419607,1766337051526,-150.0,0.00036907,7]
[399419608,1766337051535,-1320.0,0.00036915,2]
[399419609,1766337051545,-1262.0,0.00036915,2]
[399419610,1766337051555,-911.0,0.00036915,2]
[399419611,1766337051565,-1197.0,0.00036915,2]
[399419612,1766337051574,-2429.0,0.00036915,2]
[399419613,1766337051586,-150.0,0.00036915,7]
[399419614,1766337051596,-150.0,0.00036931,7]
[399419615,1766337051605,-150.0,0.00036965,7]
[399419616,1766337051615,-150.0,0.00036965,7]
[399419617,1766337051626,-1000.0,0.00036985,10]
[399419618,1766337051636,-1000.0,0.00036985,30]
[399419619,1766337051645,-198.94914877,0.00036992,2]
[399419620,1766337051654,-150.0,0.00036994,7]
[399419621,1766337051664,-1000.0,0.00036999,12]
[399419622,1766337051674,-150.0,0.00037002,7]
[399419623,1766337051683,-150.0,0.00037037,7]
[399419624,1766337051693,-150.0,0.00037037,7]
[399419625,1766337051702,-150.0,0.00037037,7]
[399419626,1766337051712,-150.0,0.00037037,7]
[399419627,1766337051722,-150.0,0.00037037,7]
[399419628,1766337051731,-150.0,0.00037037,7]
[399419629,1766337051741,-150.0,0.00037037,7]
[399419630,1766337051750,-416.03518578,0.00037052,2]
[399419631,1766337051759,-357.6762453,0.00037052,2]
[399419632,1766337051770,-150.0,0.00037072,7]
[399419633,1766337051783,-150.0,0.0003708,7]
[399419634,1766337051792,-168.0,0.00037102,7]
[399419635,1766337051802,-150.0,0.00037109,7]
[399419636,1766337051811,-150.0,0.00037109,7]
[399419637,1766337051823,-150.0,0.00037143,7]
[399419638,1766337051833,-150.0,0.00037159,7]
[399419639,1766337051845,-150.0,0.00037167,7]
[399419640,1766337051855,-150.0,0.00037176,7]
[399419641,1766337051865,-150.0,0.00037181,7]
[399419642,1766337051874,-319.62,0.000372,14]
[399419643,1766337051884,-150.0,0.00037214,7]
[399419644,1766337051893,-861.13,0.00037251,5]
[399419645,1766337051903,-883.42,0.00037251,5]
[399419646,1766337051914,-150.0,0.00037254,7]
[399419647,1766337051923,-150.0,0.00037254,7]
[399419648,1766337051933,-150.0,0.00037254,7]
[399419649,1766337051944,-150.0,0.00037254,7]
[399419650,1766337051954,-1000.0,0.00037259,30]
[399419651,1766337051964,-999.0,0.0003726,120]
[399419652,1766337051973,-150.0,0.00037281,7]
[399419653,1766337051983,-150.0,0.00037285,7]
[399419654,1766337051993,-198.94914877,0.00037304,2]
[399419655,1766337052004,-150.0,0.00037315,7]
[399419656,1766337052013,-150.0,0.00037326,7]
[399419657,1766337052024,-150.0,0.0003734,7]
[399419658,1766337052034,-150.0,0.00037356,7]
[399419659,1766337052043,-3183.5,0.00037391,5]
[399419660,1766337052053,-150.0,0.00037398,7]
[399419661,1766337052063,-150.0,0.00037398,7]
[399419662,1766337052073,-150.0,0.00037402,7]
[399419663,1766337052083,-150.0,0.00037427,7]
[399419664,1766337052093,-150.0,0.00037427,7]
[399419665,1766337052102,-150.0,0.00037427,7]
[399419666,1766337052111,-150.0,0.0003744,7]
[399419667,1766337052122,-150.0,0.00037455,7]
[399419668,1766337052131,-150.0,0.0003747,7]
[399419669,1766337052142,-150.0,0.00037489,7]
[399419670,1766337052153,-150.0,0.00037489,7]
[399419671,1766337052163,-150.0,0.00037498,7]
[399419672,1766337052173,-150.0,0.00037513,7]
[399419673,1766337052184,-150.0,0.00037517,7]
[399419674,1766337052195,-150.0,0.00037524,7]
[399419675,1766337052204,-150.0,0.00037524,7]
[399419676,1766337052214,-1000.0,0.0003753,7]
[399419677,1766337052224,-150.0,0.00037542,7]
[399419678,1766337052234,-150.0,0.00037542,7]
[399419679,1766337052244,-150.0,0.00037563,7]
[399419680,1766337052254,-150.0,0.00037569,7]
[399419681,1766337052263,-168.0,0.0003758,7]
[399419682,1766337052273,-150.0,0.00037582,7]
[399419683,1766337052283,-150.0,0.00037594,7]